fUST/lending_fUST_20251025
["ID","MTS","AMOUNT","RATE_DAILY","PERIOD"]
[392360573,1761404171803,-372.30767804,0.00017766,2]
[392360574,1761404171939,-300.0,0.00017765,2]
[392360575,1761404172016,-500.0,0.00017766,2]
[392360576,1761404172092,-500.0,0.00017766,2]
[392360577,1761404172166,-498.71565523,0.00017766,2]
[392360578,1761404172240,-576.37185083,0.00017766,2]
[392360579,1761404172311,-500.0,0.00017766,2]
[392360580,1761404172383,-500.0,0.00017766,2]
[392360581,1761404172452,-500.0,0.00017766,2]
[392360582,1761404172525,-500.0,0.00017766,2]
[392360583,1761404172595,-486.45802351,0.00017766,2]
[392360584,1761404172691,-984.62,0.00017766,2]
[392360585,1761404172762,-500.0,0.00017766,2]
[392360586,1761404172836,-500.0,0.00017766,2]
[392360587,1761404172906,-500.0,0.00017766,2]
[392360588,1761404172979,-500.0,0.00017766,2]
[392360589,1761404173054,-448.77,0.00017766,2]
[392360590,1761404173128,-500.0,0.00017766,2]
[392360591,1761404173200,-507.79703457,0.00017766,2]
[392360592,1761404173274,-500.0,0.00017766,2]
[392360595,1761404199727,568.6819817,0.00017066,2]
[392360597,1761404238771,166.7380529,0.00016813,2]
[392360598,1761404265099,266.0336965,0.0001676,2]
[392360599,1761404270033,345.39971135,0.00016,2]
[392360600,1761404307136,21366.60260269,0.000301,120]
[392360605,1761404379909,284.01,0.000201,9]
[392360606,1761404388254,3578.71890068,0.000201,9]
[392360607,1761404389586,196.0,0.00016,2]
[392360608,1761404389891,196.0,0.000167,2]
[392360609,1761404435351,202.8227168,0.00016598,2]
[392360610,1761404439785,5058.0,0.00030137,120]
[392360611,1761404510322,196.0,0.00016,2]
[392360612,1761404510725,196.0,0.0001705,2]
[392360613,1761404525282,180639.555,0.00030137,120]
[392360614,1761404558674,-276.58616224,0.00017398,2]
[392360615,1761404573574,-1200.0,0.00017596,2]
[392360616,1761404573665,-300.0,0.00017596,2]
[392360617,1761404573755,-1200.0,0.00017596,2]
[392360618,1761404588697,-266.07956731,0.00017596,2]
[392360619,1761404588779,-155.0,0.00017597,2]
[392360620,1761404588854,-300.0,0.00017597,2]
[392360621,1761404588928,-289.0,0.00017597,2]
[392360622,1761404589005,-300.0,0.00017597,2]
[392360623,1761404589085,-300.0,0.00017597,2]
[392360624,1761404589153,-500.0,0.00017597,2]
[392360625,1761404589226,-500.0,0.00017597,2]
[392360626,1761404589310,-500.0,0.00017597,2]
[392360627,1761404589393,-500.0,0.00017597,2]
[392360628,1761404589456,-500.0,0.00017597,2]
[392360629,1761404589527,-500.0,0.00017597,2]
[392360630,1761404589589,-279.85086538,0.00017597,2]
[392360631,1761404590046,-220.14913462,0.00017597,2]
[392360632,1761404590122,-500.0,0.00017597,2]
[392360633,1761404590195,-500.0,0.00017597,2]
[392360634,1761404590262,-500.0,0.00017597,2]
[392360635,1761404590473,-534.93850502,0.00017597,2]
[392360636,1761404590539,-1336.9,0.00017597,2]
[392360637,1761404590603,-500.0,0.00017597,2]
[392360638,1761404590668,-900.19,0.00017597,2]
[392360639,1761404591032,-500.0,0.00017597,2]
[392360640,1761404591106,-2933.06,0.00017597,2]
[392360641,1761404591181,-500.0,0.00017597,2]
[392360642,1761404591248,-500.0,0.00017597,2]
[392360643,1761404591317,-500.0,0.00017597,2]
[392360644,1761404591654,-500.0,0.00017597,2]
[392360645,1761404591720,-500.0,0.00017597,2]
[392360646,1761404591793,-1300.75,0.00017597,2]
[392360647,1761404591858,-514.48577647,0.00017597,2]
[392360648,1761404591927,-500.0,0.00017597,2]
[392360649,1761404592001,-500.0,0.00017597,2]
[392360650,1761404592077,-500.0,0.00017597,2]
[392360651,1761404592159,-500.0,0.00017597,2]
[392360652,1761404592483,-500.0,0.00017597,2]
[392360653,1761404592546,-500.0,0.00017597,2]
[392360654,1761404592608,-536.06,0.00017597,2]
[392360655,1761404592674,-500.0,0.00017597,2]
[392360656,1761404592742,-878.25,0.00017597,2]
[392360657,1761404592804,-1388.53,0.00017597,2]
[392360658,1761404592867,-500.0,0.00017597,2]
[392360659,1761404592959,-1001.95,0.00017597,2]
[392360660,1761404593028,-500.0,0.00017597,2]
[392360661,1761404593102,-494.95452777,0.00017597,2]
[392360662,1761404593179,-500.0,0.00017597,2]
[392360663,1761404593249,-500.0,0.00017597,2]
[392360664,1761404593321,-500.0,0.00017597,2]
[392360665,1761404593395,-815.94,0.00017597,2]
[392360666,1761404593470,-500.0,0.00017597,2]
[392360667,1761404594234,-500.0,0.00017597,2]
[392360668,1761404594306,-500.0,0.00017597,2]
[392360669,1761404594372,-500.0,0.00017597,2]
[392360670,1761404594437,-150.98989555,0.00017597,2]
[392360671,1761404594504,-500.0,0.00017597,2]
[392360672,1761404594570,-500.0,0.00017597,2]
[392360673,1761404594639,-500.0,0.00017597,2]
[392360674,1761404594701,-1770.54,0.00017597,2]
[392360675,1761404595097,-1229.4,0.00017597,2]
[392360676,1761404595167,-500.0,0.00017597,2]
[392360677,1761404595237,-500.0,0.00017597,2]
[392360678,1761404595314,-500.0,0.00017597,2]
[392360679,1761404595394,-500.0,0.00017597,2]
[392360680,1761404595461,-500.0,0.00017597,2]
[392360681,1761404595529,-500.0,0.00017597,2]
[392360682,1761404595594,-340.7,0.00017597,2]
[392360683,1761404595786,-859.81,0.00017597,2]
[392360684,1761404595856,-500.0,0.00017597,2]
[392360685,1761404595933,-500.0,0.00017597,2]
[392360686,1761404596018,-500.0,0.00017597,2]
[392360687,1761404596096,-500.0,0.00017597,2]
[392360688,1761404596176,-518.42,0.00017597,2]
[392360689,1761404596252,-511.80835646,0.00017597,2]
[392360690,1761404596325,-500.0,0.00017597,2]
[392360691,1761404596396,-500.0,0.00017597,2]
[392360692,1761404600906,-500.0,0.00017597,2]
[392360693,1761404600983,-2125.64,0.00017597,2]
[392360694,1761404601059,-1588.06,0.00017597,2]
[392360695,1761404601133,-500.0,0.00017597,2]
[392360696,1761404601206,-72.61,0.00017597,2]
[392360697,1761404601284,-427.39,0.00017597,2]
[392360698,1761404601352,-500.0,0.00017597,2]
[392360699,1761404601420,-905.32,0.00017597,2]
[392360700,1761404601488,-500.0,0.00017597,2]
[392360701,1761404601555,-538.6,0.00017597,2]
[392360702,1761404601621,-500.0,0.00017597,2]
[392360703,1761404601689,-567.91,0.00017597,2]
[392360704,1761404601753,-503.04841535,0.00017597,2]
[392360705,1761404601817,-500.0,0.00017597,2]
[392360707,1761404602188,-900.63,0.00017597,2]
[392360708,1761404602258,-505.00570231,0.00017597,2]
[392360709,1761404602326,-500.0,0.00017597,2]
[392360710,1761404602393,-548.02913685,0.00017597,2]
[392360711,1761404602459,-500.0,0.00017597,2]
[392360712,1761404602527,-1809.53,0.00017597,2]
[392360713,1761404602838,-500.0,0.00017597,2]
[392360714,1761404602908,-500.0,0.00017597,2]
[392360715,1761404602977,-500.0,0.00017597,2]
[392360716,1761404603047,-500.0,0.00017597,2]
[392360717,1761404603125,-2880.99,0.00017597,2]
[392360719,1761404608597,-238.03,0.00017597,2]
[392360720,1761404608662,-500.0,0.00017597,2]
[392360721,1761404608730,-752.71,0.00017597,2]
[392360722,1761404608798,-500.0,0.00017597,2]
[392360723,1761404608865,-500.0,0.00017597,2]
[392360724,1761404608933,-500.0,0.00017597,2]
[392360725,1761404609006,-1414.92,0.00017597,2]
[392360726,1761404609118,-1435.09,0.00017597,2]
[392360727,1761404609191,-1125.77,0.00017597,2]
[392360728,1761404609260,-500.0,0.00017597,2]
[392360729,1761404609324,-500.0,0.00017597,2]
[392360730,1761404609388,-500.0,0.00017597,2]
[392360731,1761404609450,-500.0,0.00017597,2]
[392360732,1761404609512,-378.29,0.00017597,2]
[392360733,1761404609582,-121.71,0.00017597,2]
[392360734,1761404609642,-500.0,0.00017597,2]
[392360735,1761404609705,-500.0,0.00017597,2]
[392360736,1761404609766,-500.0,0.00017597,2]
[392360737,1761404609828,-545.72,0.00017597,2]
[392360738,1761404609890,500.0,0.00017597,2]
[392360739,1761404609929,3915.65,0.00030137,120]
[392360740,1761404610006,166.25120312,0.00017596,2]
[392360741,1761404610530,591.44,0.00017597,2]
[392360742,1761404611953,500.0,0.00017597,2]
[392360743,1761404613846,500.0,0.00017596,2]
[392360744,1761404615335,629.05,0.00017597,2]
[392360745,1761404615658,500.0,0.00017597,2]
[392360746,1761404630531,196.0,0.00016,2]
[392360747,1761404631044,196.0,0.00016068,2]
[392360748,1761404631351,196.0,0.00016135,2]
[392360749,1761404631663,196.0,0.00016203,2]
[392360750,1761404632037,196.0,0.00016271,2]
[392360751,1761404632344,196.0,0.00016339,2]
[392360752,1761404632647,196.0,0.00016406,2]
[392360753,1761404632956,196.0,0.00016474,2]
[392360754,1761404633324,196.0,0.00016542,2]
[392360755,1761404633721,196.0,0.0001661,2]
[392360756,1761404634116,196.0,0.00016677,2]
[392360757,1761404634549,196.0,0.00016745,2]
[392360758,1761404634941,196.0,0.00016813,2]
[392360759,1761404635269,196.0,0.00016881,2]
[392360760,1761404635690,196.0,0.00016948,2]
[392360761,1761404635957,196.0,0.00017016,2]
[392360763,1761404754538,196.0,0.00016,2]
[392360764,1761404754847,196.0,0.0001705,2]
[392360765,1761404810741,8432.01,0.00016597,2]
[392360766,1761404810813,1342.9382131,0.00016597,2]
[392360767,1761404824540,5000.0,0.00017066,2]
[392360768,1761404832958,3657.0717869,0.00017066,2]
[392360769,1761404833032,774.2462314,0.00017066,2]
[392360770,1761404837230,1413.9909215,0.00016598,2]
[392360771,1761404841710,4031.44785172,0.00017066,2]
[392360772,1761404849641,3780.32499538,0.00017066,2]
[392360773,1761404849712,1219.67500462,0.00017066,2]
[392360775,1761404858585,960.2177511,0.00016592,2]
[392360776,1761404864550,7820.11724428,0.00016592,2]
[392360777,1761404864621,10000.01,0.00016592,2]
[392360778,1761404864691,10000.01,0.00016592,2]
[392360779,1761404864758,1763.96477302,0.00016592,2]
[392360780,1761404866992,-202.79659382,0.00017066,2]
[392360781,1761404870552,196.0,0.00016,2]
[392360782,1761404870856,196.0,0.00016078,2]
[392360783,1761404871209,196.0,0.00016156,2]
[392360784,1761404871546,196.0,0.00016233,2]
[392360785,1761404871910,196.0,0.00016311,2]
[392360786,1761404872183,205.68315899,0.00016984,2]
[392360787,1761404872270,196.0,0.00016389,2]
[392360788,1761404872558,196.0,0.00016467,2]
[392360789,1761404872903,196.0,0.00016544,2]
[392360790,1761404872983,1421.28109932,0.00017,2]
[392360791,1761404873196,196.0,0.00016622,2]
[392360792,1761404873490,196.0,0.000167,2]
[392360793,1761404874451,196.0,0.00016778,2]
[392360794,1761404874823,196.0,0.00016856,2]
[392360795,1761404875202,196.0,0.00016933,2]
[392360796,1761404881677,202.7919936,0.00017,2]
[392360797,1761404883331,155.83,0.00015225,2]
[392360798,1761404883619,155.83,0.00015225,2]
[392360799,1761404884202,155.8,0.00015225,2]
[392360800,1761404897727,3390.82897507,0.00016445,2]
[392360801,1761404897789,10000.01,0.00016445,2]
[392360802,1761404897852,382.50704223,0.00016445,2]
[392360811,1761404996257,196.0,0.00016,2]
[392360812,1761404996543,196.0,0.000167,2]
[392361473,1761405037998,-481.74555446,0.00017066,2]
[392361474,1761405038007,-500.0,0.000171,2]
[392361475,1761405038017,-196.0,0.000174,2]
[392361476,1761405038026,-402.70488384,0.00017496,2]
[392361477,1761405038035,-406.09495305,0.00017497,2]
[392361478,1761405038046,-232.41767075,0.0001754,2]
[392361668,1761405039952,-173.67728227,0.0001754,2]
[392361670,1761405039962,-191.60652382,0.00017566,2]
[392362240,1761405047974,-376.68,0.00017566,2]
[392362243,1761405047985,-522.49347618,0.00017566,2]
[392362245,1761405047994,-500.0,0.00017573,2]
[392362246,1761405048003,-500.0,0.00017573,2]
[392362247,1761405048013,-500.0,0.00017573,2]
[392362248,1761405048022,-500.0,0.00017573,2]
[392362249,1761405048032,-500.0,0.00017573,2]
[392362250,1761405048041,-500.0,0.00017573,2]
[392362251,1761405048050,-500.0,0.00017573,2]
[392362252,1761405048059,-500.0,0.00017573,2]
[392362253,1761405048069,-502.94832276,0.00017573,2]
[392362254,1761405048078,-500.0,0.00017573,2]
[392362255,1761405048087,-500.0,0.00017573,2]
[392362256,1761405048097,-500.0,0.00017573,2]
[392362257,1761405048106,-500.0,0.00017573,2]
[392362258,1761405048116,-224.28881687,0.00017581,2]
[392362259,1761405048126,-500.0,0.00017581,2]
[392362260,1761405048135,-500.0,0.00017581,2]
[392362261,1761405048144,-500.0,0.00017581,2]
[392362262,1761405048153,-500.0,0.00017581,2]
[392362263,1761405048163,-500.0,0.00017581,2]
[392362264,1761405048431,-500.0,0.00017581,2]
[392362265,1761405048441,-496.91104302,0.00017581,2]
[392362266,1761405048467,-3.08895698,0.00017581,2]
[392362267,1761405048476,-500.0,0.00017581,2]
[392362268,1761405048485,-177.81861641,0.00017581,2]
[392362269,1761405074416,376.8,0.00018934,7]
[392362270,1761405080666,-300.0,0.0001758,2]
[392362271,1761405086272,500.0,0.00017573,2]
[392362272,1761405088673,448.66819328,0.00017573,2]
[392362273,1761405089628,500.0,0.00017573,2]
[392362274,1761405092234,1372.67312742,0.00017497,2]
[392362275,1761405095568,-322.18138359,0.00017581,2]
[392362276,1761405095865,-500.0,0.00017581,2]
[392362277,1761405095953,-500.0,0.00017581,2]
[392362278,1761405096045,-500.0,0.00017581,2]
[392362279,1761405096130,-500.0,0.00017581,2]
[392362280,1761405096227,-500.0,0.00017581,2]
[392362281,1761405096312,-500.0,0.00017581,2]
[392362282,1761405096396,-500.0,0.00017581,2]
[392362283,1761405096499,-500.0,0.00017581,2]
[392362284,1761405096579,-500.0,0.00017581,2]
[392362285,1761405096856,-500.0,0.00017581,2]
[392362286,1761405096935,-500.0,0.00017581,2]
[392362287,1761405097016,-500.0,0.00017581,2]
[392362288,1761405097093,-500.0,0.00017581,2]
[392362289,1761405097176,-500.0,0.00017581,2]
[392362290,1761405097260,-500.0,0.00017581,2]
[392362291,1761405097339,-500.0,0.00017581,2]
[392362292,1761405097420,-500.0,0.00017581,2]
[392362293,1761405097499,-500.0,0.00017581,2]
[392362294,1761405097576,-500.0,0.00017581,2]
[392362295,1761405097883,-500.0,0.00017581,2]
[392362296,1761405097968,-513.57495337,0.00017581,2]
[392362297,1761405098051,-500.0,0.00017581,2]
[392362298,1761405098139,-500.0,0.00017581,2]
[392362299,1761405098226,-500.0,0.00017581,2]
[392362300,1761405098309,-500.0,0.00017581,2]
[392362301,1761405098391,-500.0,0.00017581,2]
[392362302,1761405098476,-500.0,0.00017581,2]
[392362303,1761405098565,-500.0,0.00017581,2]
[392362304,1761405098654,-472.86009326,0.00017581,2]
[392362305,1761405098736,500.0,0.00017573,2]
[392362306,1761405099129,-27.13990674,0.00017581,2]
[392362307,1761405099218,-500.0,0.00017581,2]
[392362308,1761405099303,-500.0,0.00017581,2]
[392362309,1761405099384,-500.0,0.00017581,2]
[392362310,1761405099461,-500.0,0.00017581,2]
[392362311,1761405099540,-500.0,0.00017581,2]
[392362312,1761405099614,-500.0,0.00017581,2]
[392362313,1761405099690,-500.0,0.00017581,2]
[392362314,1761405099767,-500.0,0.00017581,2]
[392362315,1761405099854,-500.0,0.00017581,2]
[392362316,1761405099933,-445.73018652,0.00017581,2]
[392362317,1761405100186,-54.26981348,0.00017581,2]
[392362318,1761405100267,-500.0,0.00017581,2]
[392362319,1761405100345,-500.0,0.00017581,2]
[392362320,1761405100424,-500.0,0.00017581,2]
[392362321,1761405100502,-500.0,0.00017581,2]
[392362322,1761405100580,-500.0,0.00017581,2]
[392362323,1761405100660,-500.0,0.00017581,2]
[392362324,1761405100740,-500.0,0.00017581,2]
[392362325,1761405100820,-500.0,0.00017581,2]
[392362326,1761405100904,-500.0,0.00017581,2]
[392362327,1761405100985,-391.47037304,0.00017581,2]
[392362328,1761405103515,-108.52962696,0.00017581,2]
[392362329,1761405103593,-500.0,0.00017581,2]
[392362330,1761405103668,-163.4304899,0.00017581,2]
[392362331,1761405103747,-500.0,0.00017581,2]
[392362332,1761405103828,-500.0,0.00017581,2]
[392362333,1761405103907,-500.0,0.00017581,2]
[392362334,1761405103987,-500.0,0.00017581,2]
[392362335,1761405104067,-500.0,0.00017581,2]
[392362336,1761405104152,-500.0,0.00017581,2]
[392362337,1761405104234,-416.34304899,0.00017581,2]
[392362338,1761405104314,-500.0,0.00017581,2]
[392362339,1761405104390,-123.4036683,0.00017581,2]
[392362340,1761405107370,-376.5963317,0.00017581,2]
[392362341,1761405107447,-500.0,0.00017581,2]
[392362342,1761405107523,-500.0,0.00017581,2]
[392362343,1761405107600,-500.0,0.00017581,2]
[392362344,1761405107681,-500.0,0.00017581,2]
[392362345,1761405107761,-471.72344163,0.00017581,2]
[392362346,1761405110570,196.0,0.00016,2]
[392362347,1761405110900,196.0,0.0001615,2]
[392362348,1761405111212,196.0,0.000163,2]
[392362349,1761405111516,196.0,0.0001645,2]
[392362350,1761405111829,196.0,0.000166,2]
[392362351,1761405112245,196.0,0.0001675,2]
[392362352,1761405112684,196.0,0.000169,2]
[392362353,1761405112863,196.0,0.0001705,2]
[392362354,1761405113167,196.0,0.000172,2]
[392362355,1761405113468,196.0,0.0001735,2]
[392362356,1761405114309,196.0,0.000175,2]
[392362357,1761405123082,229.47131153,0.00017581,2]
[392362379,1761405156744,500.0,0.00017573,2]
[392362380,1761405162195,-500.0,0.00017581,2]
[392362381,1761405162286,-300.0,0.00017581,2]
[392362382,1761405162373,-500.0,0.00017581,2]
[392362383,1761405162449,-500.0,0.00017581,2]
[392362384,1761405162530,-1200.0,0.00017581,2]
[392362385,1761405164432,396.15240273,0.00017581,2]
[392362386,1761405169190,500.0,0.00017581,2]
[392362387,1761405169393,897.84,0.00017581,2]
[392362390,1761405177210,-2614.8795832,0.00017582,2]
[392362391,1761405177300,-10000.01,0.00017582,2]
[392362392,1761405177554,-10000.01,0.00017582,2]
[392362393,1761405177793,-10000.01,0.00017582,2]
[392362394,1761405178024,-794.12883864,0.00017582,2]
[392362395,1761405178457,1466.59641514,0.00017495,2]
[392362396,1761405180458,1466.59641512,0.00017538,2]
[392362397,1761405182478,1466.59641512,0.00017581,2]
[392362398,1761405186371,500.0,0.00017581,2]
[392362399,1761405186461,500.0,0.00017581,2]
[392362400,1761405186591,551.5,0.00017581,2]
[392362401,1761405186698,500.0,0.00017581,2]
[392362402,1761405186787,500.0,0.00017581,2]
[392362403,1761405188046,1296.93,0.00017581,2]
[392362404,1761405191859,163.53307734,0.00017581,2]
[392362405,1761405191937,336.46692266,0.00017581,2]
[392362406,1761405229254,8482.58606752,0.000301,120]
[392362407,1761405231888,196.0,0.00016,2]
[392362408,1761405232196,196.0,0.00016124,2]
[392362409,1761405232508,196.0,0.00016247,2]
[392362410,1761405232809,196.0,0.00016371,2]
[392362411,1761405233121,196.0,0.00016494,2]
[392362412,1761405233541,196.0,0.00016618,2]
[392362413,1761405233884,196.0,0.00016741,2]
[392362414,1761405234433,196.0,0.00016865,2]
[392362415,1761405234574,196.0,0.00016988,2]
[392362417,1761405290007,10000.01,0.00016498,2]
[392362418,1761405290067,10000.01,0.00016498,2]
[392362419,1761405290129,10000.01,0.00016498,2]
[392362420,1761405290194,10000.01,0.00016498,2]
[392362421,1761405290259,5176.5641826,0.00016498,2]
[392362422,1761405295521,194.52940329,0.00017112,2]
[392362423,1761405300825,200.0,0.0003,120]
[392362424,1761405302620,200.0,0.0003,120]
[392362425,1761405328773,-300.0,0.00017,2]
[392362426,1761405328796,-103.50558501,0.00017,2]
[392362427,1761405332118,-189.41647552,0.00017,2]
[392362428,1761405338851,592.92206053,0.000201,9]
[392362429,1761405340533,-7.07793947,0.00017,2]
[392362430,1761405340556,-149.48946215,0.00017,2]
[392362431,1761405354009,196.0,0.00016,2]
[392362432,1761405354408,196.0,0.00016175,2]
[392362433,1761405354706,196.0,0.0001635,2]
[392362434,1761405355094,196.0,0.00016525,2]
[392362435,1761405355379,196.0,0.000167,2]
[392362436,1761405355698,196.0,0.00016875,2]
[392362437,1761405360858,156.56740162,0.000201,9]
[392362440,1761405397144,5000.0,0.0001705,2]
[392362442,1761405412823,5000.0,0.0001705,2]
[392362443,1761405420741,0.01,0.0001705,2]
[392362444,1761405420813,4999.99,0.0001705,2]
[392362445,1761405436659,5000.0,0.0001705,2]
[392362446,1761405444686,0.02,0.0001705,2]
[392362447,1761405444756,4999.98,0.0001705,2]
[392362448,1761405459936,5000.0,0.0001705,2]
[392362449,1761405467731,5000.0,0.0001705,2]
[392362450,1761405472753,0.01,0.00016,2]
[392362451,1761405472826,195.99,0.00016,2]
[392362452,1761405473228,196.0,0.00016111,2]
[392362453,1761405473539,196.0,0.00016221,2]
[392362454,1761405473986,196.0,0.00016332,2]
[392362455,1761405474381,196.0,0.00016442,2]
[392362456,1761405475327,196.0,0.00016553,2]
[392362457,1761405475896,196.0,0.00016663,2]
[392362458,1761405475995,196.0,0.00016774,2]
[392362459,1761405476306,196.0,0.00016884,2]
[392362460,1761405476800,196.0,0.00016995,2]
[392362461,1761405483128,5000.0,0.0001705,2]
[392362462,1761405491062,3040.02,0.0001705,2]
[392362463,1761405491146,1959.98,0.0001705,2]
[392362464,1761405493769,-196.0,0.00017105,2]
[392362465,1761405493795,-19.53506521,0.00017216,2]
[392362467,1761405506372,5000.0,0.0001705,2]
[392362468,1761405514353,3040.03,0.0001705,2]
[392362469,1761405529591,5000.0,0.00017,2]
[392362470,1761405538112,1542.530945,0.00016437,2]
[392362471,1761405546292,-199.19903338,0.0001705,2]
[392362472,1761405551809,3457.479055,0.00017,2]
[392362473,1761405551878,1542.520945,0.00017,2]
[392362474,1761405574062,5000.0,0.00017,2]
[392362475,1761405597090,3457.489055,0.00017,2]
[392362476,1761405599273,-382.41348663,0.00017,2]
[392362478,1761405601656,-300.0,0.00017,2]
[392362479,1761405605339,-500.0,0.00017,2]
[392362480,1761405607231,-187.88725035,0.00017,2]
[392362481,1761405617829,164.77441272,0.0001695,2]
[392362482,1761405647943,-140.49585755,0.00017,2]
[392362483,1761405662744,-300.0,0.00017,2]
[392362484,1761405662830,-300.0,0.00017,2]
[392362485,1761405662921,-300.0,0.00017,2]
[392362486,1761405678127,-1760.77096662,0.0001705,2]
[392362487,1761405691901,5000.0,0.0001705,2]
[392362488,1761405693004,-151.0,0.00017112,2]
[392362489,1761405693084,-151.0,0.00017112,2]
[392362490,1761405693178,-151.0,0.00017112,2]
[392362491,1761405693265,-151.0,0.00017112,2]
[392362492,1761405693343,-175.7903003,0.00017112,2]
[392362493,1761405707932,-690.54557909,0.00017397,2]
[392362494,1761405713192,196.0,0.00016,2]
[392362495,1761405713840,196.0,0.00016233,2]
[392362496,1761405713951,196.0,0.00016467,2]
[392362497,1761405714157,196.0,0.000167,2]
[392362498,1761405714408,1293.6668878,0.00017397,2]
[392362499,1761405714501,196.0,0.00016933,2]
[392362500,1761405714746,196.0,0.00017167,2]
[392362501,1761405723042,-196.0,0.000174,2]
[392362502,1761405738072,-690.54557909,0.00017408,2]
[392362503,1761405753200,-690.54557909,0.00017418,2]
[392362504,1761405763807,-173.75805576,0.00017429,2]
[392362505,1761405768236,-516.78752333,0.00017429,2]
[392362506,1761405776594,530.87827227,0.00017393,2]
[392362507,1761405783374,-1475.63365144,0.0001743,2]
[392362508,1761405796711,1798.20251815,0.00017386,2]
[392362509,1761405798453,-690.54557909,0.00017439,2]
[392362510,1761405813545,-300.0,0.00017471,2]
[392362511,1761405824223,-172.81061943,0.00017472,2]
[392362512,1761405826330,-254.94917353,0.00017472,2]
[392362513,1761405828831,-772.24020704,0.00017472,2]
[392362514,1761405828902,-1200.0,0.00017472,2]
[392362515,1761405831120,196.0,0.00016,2]
[392362516,1761405831571,196.0,0.00016263,2]
[392362517,1761405831892,196.0,0.00016525,2]
[392362518,1761405832374,196.0,0.00016788,2]
[392362519,1761405832692,196.0,0.0001705,2]
[392362520,1761405832964,196.0,0.00017313,2]
[392362521,1761405845103,300.0,0.00017472,2]
[392362522,1761405850873,2094.42711125,0.00017396,2]
[392362523,1761405852782,2094.42711122,0.00017397,2]
[392362524,1761405854772,2094.42711122,0.00017398,2]
[392362525,1761405856790,2094.42711122,0.00017399,2]
[392362526,1761405858762,1322.30155509,0.000174,2]
[392362527,1761405858835,772.12555613,0.000174,2]
[392362528,1761405873685,377.79708136,0.00018389,7]
[392362529,1761405879199,3292.21362479,0.000174,2]
[392362530,1761405902931,300.0,0.00017472,2]
[392362531,1761405904744,300.0,0.00017472,2]
[392362533,1761405908472,1200.0,0.00017472,2]
[392362534,1761405908566,300.0,0.00017472,2]
[392362535,1761405909825,300.0,0.00017472,2]
[392362538,1761405951185,196.0,0.00016,2]
[392362539,1761405951551,196.0,0.000167,2]
[392362540,1761405951836,196.0,0.000174,2]
[392362541,1761405963927,300.0,0.00017472,2]
[392362542,1761405967924,413.1565635,0.00016493,2]
[392362544,1761405988693,-273.81675613,0.00017473,2]
[392362545,1761405989447,666.0,0.00016492,2]
[392362546,1761405990719,-155.54830749,0.00017473,2]